fUSD/lending_fUSD_20250427
["ID","MTS","AMOUNT","RATE_DAILY","PERIOD"]
[359111087,1745712052689,212.29,0.00018629,2]
[359111088,1745712124496,200.0,0.00018715,2]
[359111089,1745712212654,150.0,0.0001872,2]
[359111090,1745712222220,196.68,0.0001872,2]
[359111091,1745712229376,166.66,0.00019282,2]
[359111092,1745712278313,150.0,0.00018724,7]
[359111093,1745712283395,200.0,0.00036985,60]
[359111094,1745712322942,523.17,0.00016805,2]
[359111095,1745712323162,523.17,0.00019069,2]
[359111096,1745712499676,1542.28,0.00018716,2]
[359111101,1745712579890,723.2239907,0.0003698,60]
[359111108,1745712632099,-200.0,0.00019448,2]
[359111109,1745712632110,-230.03919824,0.0001946,2]
[359111110,1745712632196,-19.96080176,0.0001946,2]
[359111111,1745712632206,-200.0,0.00019476,2]
[359111112,1745712632216,-236.89241657,0.00019497,2]
[359111113,1745712632226,-190.0,0.000195,2]
[359111114,1745712632236,-407.7210356,0.00019596,2]
[359111115,1745712632248,-792.2789644,0.00019596,2]
[359111116,1745712632258,-2613.35846277,0.00019597,2]
[359111117,1745712632269,-1000.0,0.00019598,2]
[359111118,1745712632280,-300.0,0.00019623,2]
[359111119,1745712632290,-2225.89274499,0.00019624,2]
[359111120,1745712632304,-2613.35846268,0.00019631,2]
[359111121,1745712632314,-2225.8927449,0.00019655,2]
[359111122,1745712632325,-2613.35846268,0.00019664,2]
[359111123,1745712632335,-500.0,0.00019673,2]
[359111124,1745712632344,-500.0,0.00019673,2]
[359111125,1745712632354,-579.77007519,0.00019673,2]
[359111126,1745712632364,-500.0,0.00019673,2]
[359111135,1745712632662,-348.2472072,0.00019673,2]
[359111136,1745712632672,-2225.8927449,0.00019685,2]
[359111137,1745712632682,-207.4,0.00019686,2]
[359111138,1745712632692,-675.13,0.00019687,2]
[359111139,1745712632702,-14509.9022448,0.00019687,2]
[359111140,1745712632713,-400.0,0.00019696,2]
[359111141,1745712632723,-400.0,0.00019696,2]
[359111142,1745712632734,-469.75,0.00019696,2]
[359111143,1745712632744,-400.0,0.00019696,2]
[359111144,1745712632754,-400.0,0.00019696,2]
[359111145,1745712632764,-400.0,0.00019696,2]
[359111146,1745712632773,-507.91,0.00019696,2]
[359111147,1745712632782,-435.71,0.00019696,2]
[359111149,1745712632791,-400.0,0.00019696,2]
[359111151,1745712632800,-400.0,0.00019696,2]
[359111153,1745712632809,-425.16,0.00019696,2]
[359111155,1745712632819,-400.0,0.00019696,2]
[359111157,1745712632828,-647.43,0.00019696,2]
[359111158,1745712632837,-353.72101305,0.00019696,2]
[359111165,1745712632897,-114.60898695,0.00019696,2]
[359111167,1745712632907,-400.0,0.00019696,2]
[359111168,1745712632916,-400.0,0.00019696,2]
[359111170,1745712632925,-206.11111188,0.00019696,2]
[359111172,1745712632936,-193.88888812,0.00019696,2]
[359111174,1745712632946,-400.0,0.00019696,2]
[359111176,1745712632955,-542.26,0.00019696,2]
[359111178,1745712632964,-2737.31815213,0.00019696,2]
[359111677,1745712638216,-2068.52184787,0.00019696,2]
[359111679,1745712638226,-400.0,0.00019696,2]
[359111681,1745712638236,-400.0,0.00019696,2]
[359111683,1745712638245,-400.0,0.00019696,2]
[359111685,1745712638255,-404.15,0.00019696,2]
[359111687,1745712638265,-400.0,0.00019696,2]
[359111689,1745712638275,-400.0,0.00019696,2]
[359111691,1745712638285,-415.8,0.00019696,2]
[359111693,1745712638295,-507.77,0.00019696,2]
[359111695,1745712638307,-9674.461549,0.00019696,2]
[359111697,1745712638316,-400.0,0.00019696,2]
[359111699,1745712638326,-400.0,0.00019696,2]
[359111701,1745712638335,-308.34705089,0.00019697,2]
[359111703,1745712638345,-400.0,0.00019697,2]
[359111705,1745712638356,-400.0,0.00019697,2]
[359111706,1745712638365,-415.11,0.00019697,2]
[359111709,1745712638375,-594.65,0.00019697,2]
[359111710,1745712638385,-400.0,0.00019697,2]
[359111713,1745712638395,-400.0,0.00019697,2]
[359111714,1745712638405,-400.0,0.00019697,2]
[359111717,1745712638414,-400.0,0.00019697,2]
[359111718,1745712638424,-400.0,0.00019697,2]
[359111720,1745712638434,-400.0,0.00019697,2]
[359111722,1745712638444,-400.0,0.00019697,2]
[359111725,1745712638453,-400.0,0.00019697,2]
[359111726,1745712638463,-454.21,0.00019697,2]
[359111728,1745712638472,-408.2,0.00019697,2]
[359111730,1745712638482,-400.0,0.00019697,2]
[359111732,1745712638492,-400.0,0.00019697,2]
[359111734,1745712638501,-1059.91,0.00019697,2]
[359111737,1745712638512,-400.0,0.00019697,2]
[359111739,1745712638523,-400.0,0.00019697,2]
[359111740,1745712638532,-555.63,0.00019697,2]
[359111742,1745712638541,-400.0,0.00019697,2]
[359111744,1745712638551,-400.0,0.00019697,2]
[359111747,1745712638561,-400.0,0.00019697,2]
[359111749,1745712638571,-400.0,0.00019697,2]
[359111751,1745712638580,-400.0,0.00019697,2]
[359111753,1745712638589,-874.3,0.00019697,2]
[359111755,1745712638599,-400.0,0.00019697,2]
[359111757,1745712638609,-400.0,0.00019697,2]
[359111759,1745712638618,-400.0,0.00019697,2]
[359111761,1745712638627,-561.57,0.00019697,2]
[359111763,1745712638637,-400.0,0.00019697,2]
[359111765,1745712638646,-400.0,0.00019697,2]
[359111766,1745712638656,-400.0,0.00019697,2]
[359111768,1745712638665,-400.0,0.00019697,2]
[359111770,1745712638674,-400.0,0.00019697,2]
[359111772,1745712638684,-400.0,0.00019697,2]
[359111774,1745712638693,-400.0,0.00019697,2]
[359111776,1745712638703,-400.0,0.00019697,2]
[359111778,1745712638713,-400.0,0.00019697,2]
[359111780,1745712638724,-400.0,0.00019697,2]
[359111782,1745712638736,-400.0,0.00019697,2]
[359111784,1745712638746,-400.0,0.00019697,2]
[359111787,1745712638756,-446.67,0.00019697,2]
[359111788,1745712638767,-1178.03,0.00019697,2]
[359111790,1745712638776,-400.0,0.00019697,2]
[359111793,1745712638786,-408.5,0.00019697,2]
[359111794,1745712638795,-250.0,0.00019697,2]
[359111796,1745712638805,-400.0,0.00019697,2]
[359111798,1745712638814,-400.0,0.00019697,2]
[359111800,1745712638824,-400.0,0.00019697,2]
[359111802,1745712638833,-400.0,0.00019697,2]
[359111804,1745712638843,-413.33,0.00019697,2]
[359111806,1745712638853,-400.0,0.00019697,2]
[359111808,1745712638862,-576.93,0.00019697,2]
[359111810,1745712638872,-423.69,0.00019697,2]
[359111812,1745712638881,-400.0,0.00019697,2]
[359111814,1745712638891,-400.0,0.00019697,2]
[359111816,1745712638900,-1321.07,0.00019697,2]
[359111818,1745712638910,-400.0,0.00019697,2]
[359111820,1745712638919,-400.0,0.00019697,2]
[359111822,1745712638928,-400.0,0.00019697,2]
[359111824,1745712638938,-400.0,0.00019697,2]
[359111826,1745712638948,-400.0,0.00019697,2]
[359111828,1745712638957,-400.0,0.00019697,2]
[359111830,1745712638966,-452.53,0.00019697,2]
[359111832,1745712638976,-400.0,0.00019697,2]
[359111834,1745712638988,-491.78,0.00019697,2]
[359111836,1745712638998,-400.0,0.00019697,2]
[359111838,1745712639008,-400.0,0.00019697,2]
[359111840,1745712639018,-400.0,0.00019697,2]
[359111842,1745712639028,-207.751238,0.00019697,2]
[359111844,1745712639037,-497.67,0.00019697,2]
[359111846,1745712639047,-400.0,0.00019697,2]
[359111848,1745712639057,-400.0,0.00019697,2]
[359111850,1745712639066,-270.69173259,0.00019697,2]
[359111852,1745712639077,-400.0,0.00019697,2]
[359111854,1745712639087,-443.32,0.00019697,2]
[359111856,1745712639097,-400.0,0.00019697,2]
[359111858,1745712639108,-150.50202754,0.00019697,2]
[359111860,1745712639117,-202.565733,0.00019697,2]
[359111862,1745712639128,-400.0,0.00019697,2]
[359111864,1745712639138,-468.04,0.00019697,2]
[359111866,1745712639150,-400.0,0.00019697,2]
[359111868,1745712639161,-478.32424483,0.00019697,2]
[359111871,1745712639171,-434.36,0.00019697,2]
[359111873,1745712639182,-400.0,0.00019697,2]
[359111875,1745712639194,-763.4,0.00019697,2]
[359111877,1745712639204,-413.448967,0.00019697,2]
[359111879,1745712639214,-400.0,0.00019697,2]
[359111881,1745712639224,-591.62,0.00019697,2]
[359111908,1745712639493,-400.0,0.00019697,2]
[359111910,1745712639504,-400.0,0.00019697,2]
[359111912,1745712639514,-792.39,0.00019697,2]
[359111914,1745712639524,-400.0,0.00019697,2]
[359111916,1745712639533,-400.0,0.00019697,2]
[359111918,1745712639542,-503.85,0.00019697,2]
[359111920,1745712639552,-400.0,0.00019697,2]
[359111922,1745712639561,-400.0,0.00019697,2]
[359111924,1745712639571,-400.0,0.00019697,2]
[359111925,1745712639580,-400.0,0.00019697,2]
[359111927,1745712639589,-400.0,0.00019697,2]
[359111929,1745712639599,-722.63,0.00019697,2]
[359111931,1745712639608,-400.0,0.00019697,2]
[359111933,1745712639617,-400.0,0.00019697,2]
[359111935,1745712639627,-400.0,0.00019697,2]
[359111937,1745712639636,-549.66,0.00019697,2]
[359111939,1745712639645,-2673.44,0.00019697,2]
[359111941,1745712639655,-500.0,0.00019697,2]
[359111943,1745712639664,-400.0,0.00019697,2]
[359111945,1745712639674,-400.0,0.00019697,2]
[359111947,1745712639683,-400.0,0.00019697,2]
[359111949,1745712639693,-400.0,0.00019697,2]
[359111951,1745712639703,-400.0,0.00019697,2]
[359111953,1745712639712,-400.0,0.00019697,2]
[359111955,1745712639722,-400.0,0.00019697,2]
[359111957,1745712639731,-400.0,0.00019697,2]
[359111959,1745712639741,-484.9,0.00019697,2]
[359111961,1745712639751,-400.0,0.00019697,2]
[359111963,1745712639760,-400.0,0.00019697,2]
[359111965,1745712639769,-400.0,0.00019697,2]
[359111967,1745712639779,-400.0,0.00019697,2]
[359111969,1745712639788,-400.0,0.00019697,2]
[359111971,1745712639798,-535.63,0.00019697,2]
[359111973,1745712639807,-400.0,0.00019697,2]
[359111975,1745712639817,-577.3,0.00019697,2]
[359111977,1745712639826,-400.0,0.00019697,2]
[359111979,1745712639836,-602.24,0.00019697,2]
[359111981,1745712639845,-400.0,0.00019697,2]
[359111983,1745712639854,-618.66,0.00019697,2]
[359111985,1745712639864,-400.0,0.00019697,2]
[359111987,1745712639873,-479.92,0.00019697,2]
[359111989,1745712639883,-400.0,0.00019697,2]
[359111991,1745712639892,-400.0,0.00019697,2]
[359111992,1745712639902,-331.27110057,0.00019697,2]
[359111994,1745712639911,-400.0,0.00019697,2]
[359111996,1745712639920,-400.0,0.00019697,2]
[359111998,1745712639930,-400.0,0.00019697,2]
[359112000,1745712639940,-400.0,0.00019697,2]
[359112002,1745712639949,-400.0,0.00019697,2]
[359112004,1745712639958,-779.31,0.00019697,2]
[359112006,1745712639968,-634.7,0.00019697,2]
[359112008,1745712639977,-763.68,0.00019697,2]
[359112010,1745712639988,-550.4,0.00019697,2]
[359112012,1745712639998,-400.0,0.00019697,2]
[359112014,1745712640008,-400.0,0.00019697,2]
[359112016,1745712640017,-400.0,0.00019697,2]
[359112018,1745712640026,-200.0,0.00019697,2]
[359112020,1745712640036,-400.0,0.00019697,2]
[359112022,1745712640046,-429.96,0.00019697,2]
[359112024,1745712640056,-400.0,0.00019697,2]
[359112026,1745712640065,-400.0,0.00019697,2]
[359112028,1745712640075,-443.04,0.00019697,2]
[359112030,1745712640084,-400.0,0.00019697,2]
[359112032,1745712640094,-678.47,0.00019697,2]
[359112034,1745712640104,-487.38,0.00019697,2]
[359112036,1745712640114,-729.43,0.00019697,2]
[359112040,1745712640124,-400.0,0.00019697,2]
[359112043,1745712640133,-400.0,0.00019697,2]
[359112046,1745712640142,-400.0,0.00019697,2]
[359112048,1745712640152,-400.0,0.00019697,2]
[359112050,1745712640161,-400.0,0.00019697,2]
[359112052,1745712640171,-400.0,0.00019697,2]
[359112054,1745712640181,-400.0,0.00019697,2]
[359112056,1745712640191,-400.0,0.00019697,2]
[359112058,1745712640200,-400.0,0.00019697,2]
[359112060,1745712640211,-400.0,0.00019697,2]
[359112061,1745712640220,-400.0,0.00019697,2]
[359112063,1745712640230,-400.0,0.00019697,2]
[359112065,1745712640242,-400.0,0.00019697,2]
[359112067,1745712640251,-488.28,0.00019697,2]
[359112069,1745712640260,-559.71,0.00019697,2]
[359112071,1745712640270,-520.37,0.00019697,2]
[359112073,1745712640279,-626.96,0.00019697,2]
[359112075,1745712640288,-624.6,0.00019697,2]
[359112077,1745712640298,-334.79671394,0.00019697,2]
[359112079,1745712640309,-400.0,0.00019697,2]
[359112081,1745712640318,-400.0,0.00019697,2]
[359112083,1745712640328,-400.0,0.00019697,2]
[359112085,1745712640337,-154.88615299,0.00019697,2]
[359112087,1745712640347,-400.0,0.00019697,2]
[359112089,1745712640357,-463.14,0.00019697,2]
[359112091,1745712640366,-400.0,0.00019697,2]
[359112093,1745712640375,-400.0,0.00019697,2]
[359112095,1745712640387,-400.0,0.00019697,2]
[359112097,1745712640397,-585.35389464,0.00019697,2]
[359112099,1745712640406,-544.35,0.00019697,2]
[359112101,1745712640415,-400.0,0.00019697,2]
[359112103,1745712640425,-400.0,0.00019697,2]
[359112105,1745712640434,-400.0,0.00019697,2]
[359112107,1745712640443,-400.0,0.00019697,2]
[359112109,1745712640453,-1625.73,0.00019697,2]
[359112110,1745712640462,-400.0,0.00019697,2]
[359112112,1745712640472,-400.0,0.00019697,2]
[359112114,1745712640481,-400.0,0.00019697,2]
[359112116,1745712640494,-400.0,0.00019697,2]
[359112118,1745712640504,-550.28,0.00019697,2]
[359112120,1745712640513,-400.0,0.00019697,2]
[359112122,1745712640523,-400.0,0.00019697,2]
[359112124,1745712640532,-400.0,0.00019697,2]
[359112126,1745712640543,-400.0,0.00019697,2]
[359112128,1745712640552,-400.0,0.00019697,2]
[359112130,1745712640562,-400.0,0.00019697,2]
[359112132,1745712640571,-400.0,0.00019697,2]
[359112134,1745712640581,-400.0,0.00019697,2]
[359112136,1745712640590,-400.0,0.00019697,2]
[359112138,1745712640599,-400.0,0.00019697,2]
[359112140,1745712640610,-719.44,0.00019697,2]
[359112142,1745712640620,-3318.09,0.00019697,2]
[359112144,1745712640629,-413.27,0.00019697,2]
[359112146,1745712640638,-400.0,0.00019697,2]
[359112148,1745712640648,-400.0,0.00019697,2]
[359112150,1745712640657,-150.0,0.00019697,2]
[359112152,1745712640667,-400.0,0.00019697,2]
[359112154,1745712640677,-400.0,0.00019697,2]
[359112156,1745712640687,-441.77,0.00019697,2]
[359112157,1745712640697,-456.91424638,0.00019697,2]
[359112160,1745712640707,-400.0,0.00019697,2]
[359112161,1745712640717,-400.0,0.00019697,2]
[359112163,1745712640727,-400.0,0.00019697,2]
[359112165,1745712640739,-400.0,0.00019697,2]
[359112167,1745712640749,-1994.81,0.00019697,2]
[359112169,1745712640758,-400.0,0.00019697,2]
[359112171,1745712640768,-675.24,0.00019697,2]
[359112173,1745712640777,-400.0,0.00019697,2]
[359112175,1745712640788,-400.0,0.00019697,2]
[359112177,1745712640797,-400.0,0.00019697,2]
[359112179,1745712640807,-455.29,0.00019697,2]
[359112181,1745712640816,-400.0,0.00019697,2]
[359112183,1745712640826,-400.0,0.00019697,2]
[359112185,1745712640836,-400.0,0.00019697,2]
[359112187,1745712640846,-400.0,0.00019697,2]
[359112190,1745712640858,-435.76,0.00019697,2]
[359112191,1745712640867,-400.0,0.00019697,2]
[359112193,1745712640878,-400.0,0.00019697,2]
[359112195,1745712640888,-400.0,0.00019697,2]
[359112197,1745712640898,-491.29834159,0.00019697,2]
[359112199,1745712640908,-409.16,0.00019697,2]
[359112201,1745712640917,-400.0,0.00019697,2]
[359112203,1745712640927,-459.25,0.00019697,2]
[359112206,1745712640936,-400.0,0.00019697,2]
[359112208,1745712640946,-400.0,0.00019697,2]
[359112210,1745712640955,-457.13,0.00019697,2]
[359112212,1745712640965,-400.0,0.00019697,2]
[359112214,1745712640974,-400.0,0.00019697,2]
[359112216,1745712640984,-400.0,0.00019697,2]
[359112217,1745712640995,-417.37,0.00019697,2]
[359112219,1745712641005,-400.0,0.00019697,2]
[359112221,1745712641017,-400.0,0.00019697,2]
[359112223,1745712641026,-400.0,0.00019697,2]
[359112225,1745712641036,-81159.85,0.00019697,2]
[359112227,1745712641046,-695.61,0.00019697,2]
[359112229,1745712641057,-465.95,0.00019697,2]
[359112231,1745712641067,-400.0,0.00019697,2]
[359112233,1745712641077,-400.0,0.00019697,2]
[359112235,1745712641086,-400.0,0.00019697,2]
[359112237,1745712641096,-510.78,0.00019697,2]
[359112239,1745712641105,-234.49664573,0.00019697,2]
[359112241,1745712641114,-400.0,0.00019697,2]
[359112243,1745712641124,-550.46,0.00019697,2]
[359112244,1745712641134,-380.70759163,0.00019697,2]
[359112246,1745712641143,-498.48,0.00019697,2]
[359112248,1745712641153,-400.0,0.00019697,2]
[359112250,1745712641163,-588.72,0.00019697,2]
[359112251,1745712641173,-1209.24,0.00019697,2]
[359112252,1745712641182,-400.0,0.00019697,2]
[359112253,1745712641192,-897.72,0.00019697,2]
[359112254,1745712641202,-400.0,0.00019697,2]
[359112255,1745712641211,-400.0,0.00019697,2]
[359112256,1745712641222,-400.0,0.00019697,2]
[359112257,1745712641231,-400.0,0.00019697,2]
[359112258,1745712641243,-742.12,0.00019697,2]
[359112259,1745712641253,-400.0,0.00019697,2]
[359112260,1745712641262,-479.38,0.00019697,2]
[359112261,1745712641272,-400.0,0.00019697,2]
[359112262,1745712641281,-400.0,0.00019697,2]
[359112263,1745712641291,-400.0,0.00019697,2]
[359112265,1745712641301,-400.0,0.00019697,2]
[359112266,1745712641311,-400.0,0.00019697,2]
[359112268,1745712641321,-400.0,0.00019697,2]
[359112270,1745712641330,-530.94,0.00019697,2]
[359112272,1745712641340,-500.0,0.00019697,2]
[359112274,1745712641349,-500.0,0.00019697,2]
[359112276,1745712641358,-483.91,0.00019697,2]
[359112278,1745712641368,-400.0,0.00019697,2]
[359112280,1745712641378,-400.0,0.00019697,2]
[359112282,1745712641388,-400.0,0.00019697,2]
[359112283,1745712641397,-400.0,0.00019697,2]
[359112285,1745712641406,-400.0,0.00019697,2]
[359112287,1745712641415,-687.83,0.00019697,2]
[359112289,1745712641425,-643.66,0.00019697,2]
[359112291,1745712641434,-400.0,0.00019697,2]
[359112293,1745712641443,-475.2,0.00019697,2]
[359112295,1745712641453,-400.0,0.00019697,2]
[359112297,1745712641462,-400.0,0.00019697,2]
[359112300,1745712641474,-424.68,0.00019697,2]
[359112302,1745712641483,-566.41,0.00019697,2]
[359112303,1745712641493,-448.72,0.00019697,2]
[359112305,1745712641503,-672.37,0.00019697,2]
[359112308,1745712641512,-526.3,0.00019697,2]
[359112309,1745712641522,-400.0,0.00019697,2]
[359112311,1745712641531,-500.0,0.00019697,2]
[359112313,1745712641541,-400.0,0.00019697,2]
[359112316,1745712641550,-563.96,0.00019697,2]
[359112317,1745712641560,-400.0,0.00019697,2]
[359112320,1745712641569,-1033.44,0.00019697,2]
[359112322,1745712641579,-400.0,0.00019697,2]
[359112324,1745712641588,-400.0,0.00019697,2]
[359112326,1745712641598,-400.0,0.00019697,2]
[359112328,1745712641607,-400.0,0.00019697,2]
[359112330,1745712641618,-459.55,0.00019697,2]
[359112332,1745712641627,-400.0,0.00019697,2]
[359112334,1745712641636,-411.87,0.00019697,2]
[359112336,1745712641646,-400.0,0.00019697,2]
[359112338,1745712641655,-662.17,0.00019697,2]
[359112340,1745712641664,-400.0,0.00019697,2]
[359112342,1745712641673,-622.93,0.00019697,2]
[359112344,1745712641683,-400.0,0.00019697,2]
[359112346,1745712641692,-400.0,0.00019697,2]
[359112348,1745712641701,-662.92,0.00019697,2]
[359112350,1745712641711,-465.04,0.00019697,2]
[359112351,1745712641721,-400.0,0.00019697,2]
[359112353,1745712641731,-400.0,0.00019697,2]
[359112355,1745712641742,-663.85,0.00019697,2]
[359112358,1745712641753,-622.37,0.00019697,2]
[359112360,1745712641762,-400.0,0.00019697,2]
[359112362,1745712641772,-785.51,0.00019697,2]
[359112364,1745712641781,-400.0,0.00019697,2]
[359112366,1745712641790,-400.0,0.00019697,2]
[359112367,1745712641800,-400.0,0.00019697,2]
[359112370,1745712641809,-400.0,0.00019697,2]
[359112372,1745712641819,-400.0,0.00019697,2]
[359112373,1745712641829,-496.99,0.00019697,2]
[359112376,1745712641840,-400.0,0.00019697,2]
[359112377,1745712641852,-723.02,0.00019697,2]
[359112380,1745712641863,-509.69,0.00019697,2]
[359112382,1745712641872,-436.15,0.00019697,2]
[359112383,1745712641881,-400.0,0.00019697,2]
[359112385,1745712641890,-400.0,0.00019697,2]
[359112387,1745712641899,-400.0,0.00019697,2]
[359112389,1745712641909,-501.9982147,0.00019697,2]
[359112391,1745712641919,-400.0,0.00019697,2]
[359112393,1745712641928,-2159.7,0.00019697,2]
[359112395,1745712641938,-419.36,0.00019697,2]
[359112397,1745712641947,-400.0,0.00019697,2]
[359112399,1745712641957,-400.0,0.00019697,2]
[359112401,1745712641966,-1954.0,0.00019697,2]
[359112403,1745712641975,-400.0,0.00019697,2]
[359112405,1745712641986,-512.04613896,0.00019697,2]
[359112407,1745712641995,-400.0,0.00019697,2]
[359112409,1745712642005,-500.0,0.00019697,2]
[359112411,1745712642014,-500.0,0.00019697,2]
[359112413,1745712642024,-400.0,0.00019697,2]
[359112415,1745712642034,-400.0,0.00019697,2]
[359112417,1745712642044,-150.0,0.00019697,2]
[359112419,1745712642054,-400.0,0.00019697,2]
[359112421,1745712642063,-400.0,0.00019697,2]
[359112423,1745712642072,-400.0,0.00019697,2]
[359112425,1745712642081,-400.0,0.00019697,2]
[359112427,1745712642090,-503.9,0.00019697,2]
[359112429,1745712642100,-400.0,0.00019697,2]
[359112431,1745712642109,-400.0,0.00019697,2]
[359112433,1745712642120,-400.0,0.00019697,2]
[359112435,1745712642129,-400.0,0.00019697,2]
[359112437,1745712642138,-515.18,0.00019697,2]
[359112439,1745712642147,-400.0,0.00019697,2]
[359112441,1745712642157,-520.48143566,0.00019697,2]
[359112443,1745712642167,-400.0,0.00019697,2]
[359112445,1745712642176,-3699.18,0.00019697,2]
[359112447,1745712642186,-400.0,0.00019698,2]
[359112449,1745712642195,-400.0,0.00019698,2]
[359112451,1745712642205,-400.0,0.00019698,2]
[359112453,1745712642214,-400.0,0.00019698,2]
[359112455,1745712642223,-400.0,0.00019698,2]
[359112457,1745712642233,-400.0,0.00019698,2]
[359112459,1745712642245,-400.0,0.00019698,2]
[359112461,1745712642255,-400.0,0.00019698,2]
[359112463,1745712642264,-400.0,0.00019698,2]
[359112465,1745712642273,-316.15480118,0.00019698,2]
[359112467,1745712642283,-640.87,0.00019698,2]
[359112469,1745712642293,-402.6,0.00019698,2]
[359112471,1745712642304,-400.0,0.00019698,2]
[359112473,1745712642314,-400.0,0.00019698,2]
[359112475,1745712642323,-500.0,0.00019698,2]
[359112478,1745712642335,-500.0,0.00019698,2]
[359112479,1745712642344,-400.0,0.00019698,2]
[359112481,1745712642353,-400.0,0.00019698,2]
[359112483,1745712642362,-400.0,0.00019698,2]
[359112486,1745712642372,-440.67,0.00019698,2]
[359112488,1745712642383,-333.82362733,0.00019698,2]
[359112489,1745712642392,-479.92,0.00019698,2]
[359112491,1745712642401,-400.0,0.00019698,2]
[359112494,1745712642411,-714.64,0.00019698,2]
[359112495,1745712642420,-400.0,0.00019698,2]
[359112497,1745712642430,-400.0,0.00019698,2]
[359112500,1745712642439,-400.0,0.00019698,2]
[359112502,1745712642448,-400.0,0.00019698,2]
[359112504,1745712642458,-400.0,0.00019698,2]
[359112506,1745712642468,-400.0,0.00019698,2]
[359112507,1745712642478,-400.0,0.00019698,2]
[359112510,1745712642491,-525.16,0.00019698,2]
[359112511,1745712642500,-400.0,0.00019698,2]
[359112513,1745712642509,-400.0,0.00019698,2]
[359112516,1745712642519,-400.0,0.00019698,2]
[359112518,1745712642529,-400.0,0.00019698,2]
[359112520,1745712642539,-400.0,0.00019698,2]
[359112522,1745712642548,-400.0,0.00019698,2]
[359112524,1745712642557,-400.0,0.00019698,2]
[359112526,1745712642567,-522.81,0.00019698,2]
[359112528,1745712642576,-400.0,0.00019698,2]
[359112530,1745712642585,-400.0,0.00019698,2]
[359112532,1745712642595,-500.0,0.00019698,2]
[359112534,1745712642604,-400.0,0.00019698,2]
[359112536,1745712642613,-400.0,0.00019698,2]
[359112537,1745712642622,-636.87,0.00019698,2]
[359112540,1745712642632,-403.47626922,0.00019698,2]
[359112541,1745712642641,-400.0,0.00019698,2]
[359112543,1745712642651,-400.0,0.00019698,2]
[359112546,1745712642660,-400.0,0.00019698,2]
[359112548,1745712642670,-400.0,0.00019698,2]
[359112550,1745712642680,-454.12,0.00019698,2]
[359112552,1745712642689,-400.0,0.00019698,2]
[359112554,1745712642698,-400.0,0.00019698,2]
[359112556,1745712642708,-400.0,0.00019698,2]
[359112558,1745712642718,-400.0,0.00019698,2]
[359112560,1745712642727,-400.0,0.00019698,2]
[359112562,1745712642738,-514.12,0.00019698,2]
[359112564,1745712642748,-400.0,0.00019698,2]
[359112566,1745712642758,-400.0,0.00019698,2]
[359112568,1745712642768,-500.0,0.00019698,2]
[359112570,1745712642777,-514.99,0.00019698,2]